Workbook

Sheet Introduction
B5: Simulateur de l'impact d'une baisse ou d'une hausse de prix d'un produit sur sa marge brute
B7: Ce calculateur permet d'analyser l'impact qu'aurait notamment un changement de prix d'un produit sur sa marge brute pendant la durée qu'il s'appliquera. Par exemple, il permet de calculer combien de produits supplémentaires il faut vendre pour conserver la même marge, c'est-à-dire pour se retrouver au même point. Les entreprises dont les produits dégagent une forte marge sur coûts variables soutiendront habituellement l'augmentation de leurs ventes afin de bénéficier d'économies d'échelle et d'accroître leurs parts de marché. Elles considéreront alors des rabais sur les prix de leurs produits s'ils en stimulent suffisamment la demande auprès de leur clientèle pour compenser la réduction de prix. Quant à elles, les entreprises dont les produits génèrent une faible marge sur coûts variables pourraient envisager l'augmentation de leurs prix si la demande demeure acceptable malgré la hausse, et que les économies d'échelle représentent un enjeu secondaire pour elles. Outre le prix, ce calculateur permet de faire des simulations en modifiant les autres composantes de la marge brute provenant de la vente d'un produit: les quantités vendues, les frais variables et les coûts fixes.
B30: Réalisé par Mario Roy, agr. M.Sc.
B31: Version du 14 janvier 2019

Sheet Entrée de données
A2: Instruction: Veuillez inscrire les données demandées dans les cellules en surbrillance (jaune). Vous pouvez effacer les données existantes en cliquant sur le bouton ci-contre. Les résultats de la simulation sur la marge bénéficiaire de l'entreprise sont affichés à la page suivante.
A4: Durée prévue de la modification de prix : | B4: 2 | C4: mois
D5: % de réduction ou d'augmentation du prix après modification du prix actuel
A6: Prix actuel de votre produit: | B6: 10 | C6: par unité
A7: Prix du produit après réduction ou augmentation de son prix: | B7: 9 | C7: par unité | D7: =(B7-B6)/B6 -> -0.1
D9: % PRÉVU de réduction ou d'augmentation des quantités vendues du produit
A10: Quantité d'unités de produits habituellement vendue au prix actuel PENDANT UNE PÉRIODE D'UNE DURÉE COMPARABLE À CELLE DE LA MODIFICATION DE PRIX: | B10: 1000 | C10: unités
A11: Prévision de la quantité d'unités de produits vendue au nouveau prix en tenant compte de la limite de votre capacité de production PENDANT LA DURÉE DE LA MODIFICATION DE PRIX: | B11: 1334 | C11: unités pendant la période visée de | D11: =(B11-B10)/B10 -> 0.334
C12: =CONCATENATE(B4,C4) -> 2 mois
AA13: Coûts variables actuels | AB13: =B6-B15 -> 4
D14: Marge sur coûts variables en % des ventes
A15: Coûts variables par unité de produit dans la situation actuelle avant la modification du prix ou aux coûts du produit: | B15: 6 | C15: par unité | D15: =(B6-B15)/B6 -> 0.4 | F15: Coûts variables unitaires totaux
A16: Coûts VARIABLES ADDITIONNELS ou (RÉDUITS) par unité de produit s'appliquant PENDANT LA DURÉE DE LA MODIFICATION DE PRIX: | C16: par unité | D16: =(B7-B15-B16)/B7 -> 0.3333333333 | F16: =IF(B15+B16>=B7,"Veuillez corriger le total des frais variables qui doit être inférieur à la donnée de la cellule B7",B15+B16) -> 6
A19: Coûts FIXES ADDITIONNELS OU (RÉDUITS) s'appliquant au produit PENDANT LA DURÉE DE LA MODIFICATION DE PRIX:

Sheet Résultats
A1: Synthèse des modifications relatives au prix, aux coûts et à la prévision des ventes du produit
C3: Situation du début | D3: Changements anticipés | F3: Situation pendant la durée de la modification de prix
D4: $ | E4: %
A5: Quantité (nombre d'unité vendues) | C5: ='Entrée de données'!B10 -> 1000 | E5: ='Entrée de données'!D11 -> 0.334 | F5: ='Entrée de données'!B11 -> 1334
A7: Prix du produit ($) | C7: ='Entrée de données'!B6 -> 10 | D7: =F7-C7 -> -1 | E7: ='Entrée de données'!D7 -> -0.1 | F7: ='Entrée de données'!B7 -> 9
A8: Moins Coûts variables par unité de produit ($) | C8: ='Entrée de données'!B15 -> 6 | D8: =F8-C8 -> 0 | E8: =D8/C8 -> 0 | F8: =IF('Entrée de données'!F16<'Entrée de données'!B7,IF('Entrée de données'!F16<0,"Erreur, les coûts variables doivent être supérieurs ou égaux à 0 ",'Entrée de données'!B15+'Entrée de données'!B16),"Erreur les coûts variables doivent être inférieurs au prix du produit") -> 6
A9: Marge sur coûts variables par unité de produit | C9: =Résultats!C7-Résultats!C8 -> 4 | D9: =F9-C9 -> -1 | E9: =D9/C9 -> -0.25 | F9: =F7-F8 -> 3
A11: Revenus totaux | C11: =C7*C5 -> 10000 | D11: =F11-C11 -> 2006 | E11: =D11/C11 -> 0.2006 | F11: =F7*F5 -> 12006
A12: Moins Coûts variables totaux | C12: =C8*C5 -> 6000 | D12: =F12-C12 -> 2004 | E12: =D12/C12 -> 0.334 | F12: =F8*F5 -> 8004
A13: Moins Coûts fixes additionnels | F13: ='Entrée de données'!$B$19 -> 0
A14: Marge brute après déduction des frais variables et frais fixes additionnels | C14: =C9*C5 -> 4000 | D14: =F24 -> 2 | E14: =D14/C14 -> 0.0005 | F14: =F23 -> 4002
A17: Résultats et constats suite à la modification au prix et aux coûts du produit
A18: Nouvelle situation
A19: =IF(F19>0,"PENDANT LA DURÉE DE LA MODIFICATION DE PRIX, votre entreprise conserverait sa marge brute du début, si elle réussissait à augmenter ses ventes en unités de son produit de ce % :",IF(F19=0,"PENDANT LA DURÉE DE LA MODIFICATION DE PRIX, votre entreprise conserverait sa marge brute du début s'il n'y avait aucun changement dans le volume des ventes de son produit. Dans ce cas, les ventes enregistreraient une variation de:","PENDANT LA DURÉE DE LA MODIFICATION DE PRIX, votre entreprise conserverait sa marge brute du début si elle évitait une baisse des ventes en unités de son produit de ce % :")) -> PENDANT LA DURÉE DE LA MODIFICATION DE PRIX, votre entreprise conserverait sa marge brute du début, si elle réussissait à augmenter ses ventes en unités de son produit de ce % : | F19: =-(D9/F9)+(F13/(F9*C5)) -> 0.3333333333 | G19: =IF(F19<0,"ou une baisse de cette quantité en unités:","ou une hausse de cette quantité en unités:") -> ou une hausse de cette quantité en unités: | H19: =(-(D9/F9)*C5)+(F13/(F9)) -> 333.3333333 | I19: unités | J19: représentant des ventes totales de ce produit de: | K19: =H19+C5 -> 1333.333333 | L19: unités
A20: et, dans ce cas, la marge brute s'élèverait à: | F20: =F9*(C5+H19)-F13 -> 4000
A22: PENDANT LA DURÉE DE LA MODIFICATION DE PRIX, selon vos prévisions, vos ventes en unités augmenteront (diminueront) de ce %: | F22: ='Entrée de données'!D11 -> 0.334 | G22: ou de cette quantité en unités: | H22: ='Entrée de données'!B11-'Entrée de données'!B10 -> 334 | I22: unités | J22: représentant au total: | K22: =F5 -> 1334 | L22: unités
A23: et, dans ce cas, la nouvelle marge brute liée aux ventes prévues au nouveau prix et aux nouveaux coûts du produit PENDANT LA DURÉE DE LA MODIFICATION DE PRIX, sera de: | F23: =(F9*'Entrée de données'!B11)-F13 -> 4002
A24: =IF(F24>0,"Selon vos prévisions de vente, vous augmenterez la marge brute du début. Le projet aura un impact positif sur votre marge brute équivalent à ce montant PENDANT LA DURÉE DE LA MODIFICATION DE PRIX:",IF(F24=0,"Selon vos prévisions de vente, vous conserverez la marge brute du début. Le projet aura un impact neutre PENDANT LA DURÉE DE LA MODIFICATION DE PRIX sur votre marge brute ou de:","Selon vos prévisions de vente, vous aurez un manque à gagner équivalent à ce montant pour conserver votre marge brute du début. Votre projet aura un impact négatif sur votre marge brute égal à ce montant PENDANT LA DURÉE DE LA MODIFICATION DE PRIX:")) -> Selon vos prévisions de vente, vous augmenterez la marge brute du début. Le projet aura un impact positif sur votre marge brute équivalent à ce montant PENDANT LA DURÉE DE LA MODIFICATION DE PRIX: | F24: =TRUNC(F23-F20) -> 2

Sheet tableauGlobal
B1: Tableau 1: Effets des réductions de prix. Hausse en % des quantités vendues d'un produit nécessaire pour conserver la même marge sur coûts variables après une réduction de son prix.
D3: Marge sur coûts variables actuelle générée par le produit en % de ses ventes
A4: -0.09 | C4: =IF(A4="","",IF(A4+A5>0,-A4/(A5+A4),"---")) -> 0.4285714286 | D4: 0.1 | E4: 0.15 | F4: 0.2 | G4: 0.25 | H4: 0.3 | I4: 0.35 | J4: 0.4 | K4: 0.45 | L4: 0.5 | M4: 0.55 | N4: 0.6 | O4: 0.65 | P4: 0.7 | Q4: 0.75 | R4: 0.8 | S4: 0.85 | T4: 0.9 | U4: 0.95 | V4: 1
A5: 0.3 | B5: Réduction (-) en % du prix du produit | C5: -0.05 | D5: 1 | E5: 0.5 | F5: 0.3333333333 | G5: 0.25 | H5: 0.2 | I5: 0.1666666667 | J5: 0.1428571429 | K5: 0.125 | L5: 0.1111111111 | M5: 0.1 | N5: 0.09090909091 | O5: 0.08333333333 | P5: 0.07692307692 | Q5: 0.07142857143 | R5: 0.06666666667 | S5: 0.0625 | T5: 0.05882352941 | U5: 0.05555555556 | V5: 0.05263157895
C6: -0.1 | D6: --- | E6: 2 | F6: 1 | G6: 0.6666666667 | H6: 0.5 | I6: 0.4 | J6: 0.3333333333 | K6: 0.2857142857 | L6: 0.25 | M6: 0.2222222222 | N6: 0.2 | O6: 0.1818181818 | P6: 0.1666666667 | Q6: 0.1538461538 | R6: 0.1428571429 | S6: 0.1333333333 | T6: 0.125 | U6: 0.1176470588 | V6: 0.1111111111
C7: -0.15 | D7: --- | E7: --- | F7: 3 | G7: 1.5 | H7: 1 | I7: 0.75 | J7: 0.6 | K7: 0.5 | L7: 0.4285714286 | M7: 0.375 | N7: 0.3333333333 | O7: 0.3 | P7: 0.2727272727 | Q7: 0.25 | R7: 0.2307692308 | S7: 0.2142857143 | T7: 0.2 | U7: 0.1875 | V7: 0.1764705882
C8: -0.2 | D8: --- | E8: --- | F8: --- | G8: 4 | H8: 2 | I8: 1.333333333 | J8: 1 | K8: 0.8 | L8: 0.6666666667 | M8: 0.5714285714 | N8: 0.5 | O8: 0.4444444444 | P8: 0.4 | Q8: 0.3636363636 | R8: 0.3333333333 | S8: 0.3076923077 | T8: 0.2857142857 | U8: 0.2666666667 | V8: 0.25
C9: -0.25 | D9: --- | E9: --- | F9: --- | G9: --- | H9: 5 | I9: 2.5 | J9: 1.666666667 | K9: 1.25 | L9: 1 | M9: 0.8333333333 | N9: 0.7142857143 | O9: 0.625 | P9: 0.5555555556 | Q9: 0.5 | R9: 0.4545454545 | S9: 0.4166666667 | T9: 0.3846153846 | U9: 0.3571428571 | V9: 0.3333333333
C10: -0.3 | D10: --- | E10: --- | F10: --- | G10: --- | H10: --- | I10: 6 | J10: 3 | K10: 2 | L10: 1.5 | M10: 1.2 | N10: 1 | O10: 0.8571428571 | P10: 0.75 | Q10: 0.6666666667 | R10: 0.6 | S10: 0.5454545455 | T10: 0.5 | U10: 0.4615384615 | V10: 0.4285714286
C11: -0.35 | D11: --- | E11: --- | F11: --- | G11: --- | H11: --- | I11: --- | J11: 7 | K11: 3.5 | L11: 2.333333333 | M11: 1.75 | N11: 1.4 | O11: 1.166666667 | P11: 1 | Q11: 0.875 | R11: 0.7777777778 | S11: 0.7 | T11: 0.6363636364 | U11: 0.5833333333 | V11: 0.5384615385
C12: -0.4 | D12: --- | E12: --- | F12: --- | G12: --- | H12: --- | I12: --- | J12: --- | K12: 8 | L12: 4 | M12: 2.666666667 | N12: 2 | O12: 1.6 | P12: 1.333333333 | Q12: 1.142857143 | R12: 1 | S12: 0.8888888889 | T12: 0.8 | U12: 0.7272727273 | V12: 0.6666666667
C13: -0.45 | D13: --- | E13: --- | F13: --- | G13: --- | H13: --- | I13: --- | J13: --- | K13: --- | L13: 9 | M13: 4.5 | N13: 3 | O13: 2.25 | P13: 1.8 | Q13: 1.5 | R13: 1.285714286 | S13: 1.125 | T13: 1 | U13: 0.9 | V13: 0.8181818182
C14: -0.5 | D14: --- | E14: --- | F14: --- | G14: --- | H14: --- | I14: --- | J14: --- | K14: --- | L14: --- | M14: 10 | N14: 5 | O14: 3.333333333 | P14: 2.5 | Q14: 2 | R14: 1.666666667 | S14: 1.428571429 | T14: 1.25 | U14: 1.111111111 | V14: 1
C15: -0.55 | D15: --- | E15: --- | F15: --- | G15: --- | H15: --- | I15: --- | J15: --- | K15: --- | L15: --- | M15: --- | N15: 11 | O15: 5.5 | P15: 3.666666667 | Q15: 2.75 | R15: 2.2 | S15: 1.833333333 | T15: 1.571428571 | U15: 1.375 | V15: 1.222222222
C16: -0.6 | D16: --- | E16: --- | F16: --- | G16: --- | H16: --- | I16: --- | J16: --- | K16: --- | L16: --- | M16: --- | N16: --- | O16: 12 | P16: 6 | Q16: 4 | R16: 3 | S16: 2.4 | T16: 2 | U16: 1.714285714 | V16: 1.5
C17: -0.65 | D17: --- | E17: --- | F17: --- | G17: --- | H17: --- | I17: --- | J17: --- | K17: --- | L17: --- | M17: --- | N17: --- | O17: --- | P17: 13 | Q17: 6.5 | R17: 4.333333333 | S17: 3.25 | T17: 2.6 | U17: 2.166666667 | V17: 1.857142857
C18: -0.7 | D18: --- | E18: --- | F18: --- | G18: --- | H18: --- | I18: --- | J18: --- | K18: --- | L18: --- | M18: --- | N18: --- | O18: --- | P18: --- | Q18: 14 | R18: 7 | S18: 4.666666667 | T18: 3.5 | U18: 2.8 | V18: 2.333333333
C19: -0.75 | D19: --- | E19: --- | F19: --- | G19: --- | H19: --- | I19: --- | J19: --- | K19: --- | L19: --- | M19: --- | N19: --- | O19: --- | P19: --- | Q19: --- | R19: 15 | S19: 7.5 | T19: 5 | U19: 3.75 | V19: 3
B20: Exemple: votre marge sur coûts variables initiale est de 30% sur l'un de vos produits. Vous offrez une réduction de 10% sur son prix. Rendez-vous à l'intersection de la ligne des 10% et de la colonne des 30%. Vous constatez qu'il faut vendre 50% plus de produits pour conserver la même marge sur coûts variables.
B23: Tableau 2: Effets des hausses de prix. Baisse en % des quantités vendues d'un produit nécessaire pour conserver la même marge sur coûts variables après à une hausse de son prix.
D24: Marge sur coûts variables actuelle générée par le produit en % de ses ventes
A25: 0.1 | C25: =IF(A25="","",IF(A25+A26>0,-A25/(A26+A25),"% incalculable")) -> -0.2 | D25: 0.1 | E25: 0.15 | F25: 0.2 | G25: 0.25 | H25: 0.3 | I25: 0.35 | J25: 0.4 | K25: 0.45 | L25: 0.5 | M25: 0.55 | N25: 0.6 | O25: 0.65 | P25: 0.7 | Q25: 0.75 | R25: 0.8 | S25: 0.85 | T25: 0.9 | U25: 0.95 | V25: 1
A26: 0.4 | B26: Augmentation (+) en % du prix du produit | C26: 0.05 | D26: -0.3333333333 | E26: -0.25 | F26: -0.2 | G26: -0.1666666667 | H26: -0.1428571429 | I26: -0.125 | J26: -0.1111111111 | K26: -0.1 | L26: -0.09090909091 | M26: -0.08333333333 | N26: -0.07692307692 | O26: -0.07142857143 | P26: -0.06666666667 | Q26: -0.0625 | R26: -0.05882352941 | S26: -0.05555555556 | T26: -0.05263157895 | U26: -0.05 | V26: -0.04761904762
C27: 0.1 | D27: -0.5 | E27: -0.4 | F27: -0.3333333333 | G27: -0.2857142857 | H27: -0.25 | I27: -0.2222222222 | J27: -0.2 | K27: -0.1818181818 | L27: -0.1666666667 | M27: -0.1538461538 | N27: -0.1428571429 | O27: -0.1333333333 | P27: -0.125 | Q27: -0.1176470588 | R27: -0.1111111111 | S27: -0.1052631579 | T27: -0.1 | U27: -0.09523809524 | V27: -0.09090909091
C28: 0.15 | D28: -0.6 | E28: -0.5 | F28: -0.4285714286 | G28: -0.375 | H28: -0.3333333333 | I28: -0.3 | J28: -0.2727272727 | K28: -0.25 | L28: -0.2307692308 | M28: -0.2142857143 | N28: -0.2 | O28: -0.1875 | P28: -0.1764705882 | Q28: -0.1666666667 | R28: -0.1578947368 | S28: -0.15 | T28: -0.1428571429 | U28: -0.1363636364 | V28: -0.1304347826
C29: 0.2 | D29: -0.6666666667 | E29: -0.5714285714 | F29: -0.5 | G29: -0.4444444444 | H29: -0.4 | I29: -0.3636363636 | J29: -0.3333333333 | K29: -0.3076923077 | L29: -0.2857142857 | M29: -0.2666666667 | N29: -0.25 | O29: -0.2352941176 | P29: -0.2222222222 | Q29: -0.2105263158 | R29: -0.2 | S29: -0.1904761905 | T29: -0.1818181818 | U29: -0.1739130435 | V29: -0.1666666667
C30: 0.25 | D30: -0.7142857143 | E30: -0.625 | F30: -0.5555555556 | G30: -0.5 | H30: -0.4545454545 | I30: -0.4166666667 | J30: -0.3846153846 | K30: -0.3571428571 | L30: -0.3333333333 | M30: -0.3125 | N30: -0.2941176471 | O30: -0.2777777778 | P30: -0.2631578947 | Q30: -0.25 | R30: -0.2380952381 | S30: -0.2272727273 | T30: -0.2173913043 | U30: -0.2083333333 | V30: -0.2
C31: 0.3 | D31: -0.75 | E31: -0.6666666667 | F31: -0.6 | G31: -0.5454545455 | H31: -0.5 | I31: -0.4615384615 | J31: -0.4285714286 | K31: -0.4 | L31: -0.375 | M31: -0.3529411765 | N31: -0.3333333333 | O31: -0.3157894737 | P31: -0.3 | Q31: -0.2857142857 | R31: -0.2727272727 | S31: -0.2608695652 | T31: -0.25 | U31: -0.24 | V31: -0.2307692308
C32: 0.35 | D32: -0.7777777778 | E32: -0.7 | F32: -0.6363636364 | G32: -0.5833333333 | H32: -0.5384615385 | I32: -0.5 | J32: -0.4666666667 | K32: -0.4375 | L32: -0.4117647059 | M32: -0.3888888889 | N32: -0.3684210526 | O32: -0.35 | P32: -0.3333333333 | Q32: -0.3181818182 | R32: -0.3043478261 | S32: -0.2916666667 | T32: -0.28 | U32: -0.2692307692 | V32: -0.2592592593
C33: 0.4 | D33: -0.8 | E33: -0.7272727273 | F33: -0.6666666667 | G33: -0.6153846154 | H33: -0.5714285714 | I33: -0.5333333333 | J33: -0.5 | K33: -0.4705882353 | L33: -0.4444444444 | M33: -0.4210526316 | N33: -0.4 | O33: -0.380952381 | P33: -0.3636363636 | Q33: -0.347826087 | R33: -0.3333333333 | S33: -0.32 | T33: -0.3076923077 | U33: -0.2962962963 | V33: -0.2857142857
C34: 0.45 | D34: -0.8181818182 | E34: -0.75 | F34: -0.6923076923 | G34: -0.6428571429 | H34: -0.6 | I34: -0.5625 | J34: -0.5294117647 | K34: -0.5 | L34: -0.4736842105 | M34: -0.45 | N34: -0.4285714286 | O34: -0.4090909091 | P34: -0.3913043478 | Q34: -0.375 | R34: -0.36 | S34: -0.3461538462 | T34: -0.3333333333 | U34: -0.3214285714 | V34: -0.3103448276
C35: 0.5 | D35: -0.8333333333 | E35: -0.7692307692 | F35: -0.7142857143 | G35: -0.6666666667 | H35: -0.625 | I35: -0.5882352941 | J35: -0.5555555556 | K35: -0.5263157895 | L35: -0.5 | M35: -0.4761904762 | N35: -0.4545454545 | O35: -0.4347826087 | P35: -0.4166666667 | Q35: -0.4 | R35: -0.3846153846 | S35: -0.3703703704 | T35: -0.3571428571 | U35: -0.3448275862 | V35: -0.3333333333
C36: 0.55 | D36: -0.8461538462 | E36: -0.7857142857 | F36: -0.7333333333 | G36: -0.6875 | H36: -0.6470588235 | I36: -0.6111111111 | J36: -0.5789473684 | K36: -0.55 | L36: -0.5238095238 | M36: -0.5 | N36: -0.4782608696 | O36: -0.4583333333 | P36: -0.44 | Q36: -0.4230769231 | R36: -0.4074074074 | S36: -0.3928571429 | T36: -0.3793103448 | U36: -0.3666666667 | V36: -0.3548387097
B37: Exemple: votre marge sur coûts variables initiale est de 30% sur l'un de vos produits. Vous appliquez une hausse de 10% sur son prix. Rendez-vous à l'intersection de la ligne des 10% et de la colonne des 30%. Vous constatez qu'il vous faut vendre 25% moins de produits pour conserver la même marge sur coûts variables.
